[Event "Titled Tuesday Blitz January 17 Late 2023"]
[White "Floresvillar Gonzalez, Luis Migu"]
[Black "marik_spb"]
[WhiteFideId "5100542"]
[WhiteElo "2043"]
[BlackElo "2408"]
[Result "1-0"]
[Round "04"]
[TimeControl "180+2"]
[Date "2023.01.17"]
[WhiteClock "0:00:36"]
[BlackClock "0:00:06"]

1. d4 {[%clk 0:03:00]}  Nf6 {[%clk 0:02:31]} 2. Bf4 {[%clk 0:02:59]}  d5 {[%clk 0:02:30]} 3. Nd2 {[%clk 0:02:58]}  e6 {[%clk 0:02:30]} 4. e3 {[%clk 0:02:57]}  Bd6 {[%clk 0:02:31]} 5. Bd3 {[%clk 0:02:56]}  O-O {[%clk 0:02:31]} 6. Ngf3 {[%clk 0:02:54]}  b6 {[%clk 0:02:31]} 7. Qe2 {[%clk 0:02:52]}  Bb7 {[%clk 0:02:31]} 8. Ne5 {[%clk 0:02:50]}  Nbd7 {[%clk 0:02:30]} 9. O-O {[%clk 0:02:49]}  Ne4 {[%clk 0:02:24]} 10. Nxe4 {[%clk 0:02:40]}  dxe4 {[%clk 0:02:25]} 11. Bb5 {[%clk 0:02:39]}  Nxe5 {[%clk 0:02:15]} 12. dxe5 {[%clk 0:02:37]}  Bc5 {[%clk 0:02:14]} 13. Rad1 {[%clk 0:02:26]}  Qc8 {[%clk 0:02:12]} 14. c3 {[%clk 0:02:24]}  c6 {[%clk 0:02:05]} 15. Bc4 {[%clk 0:02:15]}  b5 {[%clk 0:02:05]} 16. Bb3 {[%clk 0:02:14]}  a5 {[%clk 0:02:05]} 17. Rd2 {[%clk 0:02:08]}  Qc7 {[%clk 0:02:00]} 18. Rfd1 {[%clk 0:02:07]}  Rad8 {[%clk 0:02:01]} 19. Bc2 {[%clk 0:01:59]}  b4 {[%clk 0:01:57]} 20. Bxe4 {[%clk 0:01:55]}  Be7 {[%clk 0:01:55]} 21. c4 {[%clk 0:01:52]}  a4 {[%clk 0:01:50]} 22. b3 {[%clk 0:01:51]}  a3 {[%clk 0:01:44]} 23. h3 {[%clk 0:01:50]}  Bc8 {[%clk 0:01:41]} 24. Rd4 {[%clk 0:01:47]}  c5 {[%clk 0:01:40]} 25. R4d3 {[%clk 0:01:41]}  Rxd3 {[%clk 0:01:39]} 26. Rxd3 {[%clk 0:01:40]}  Rd8 {[%clk 0:01:39]} 27. Qd2 {[%clk 0:01:38]}  h6 {[%clk 0:01:36]} 28. Bg3 {[%clk 0:01:37]}  Rxd3 {[%clk 0:01:29]} 29. Qxd3 {[%clk 0:01:36]}  Qd7 {[%clk 0:01:29]} 30. Kf1 {[%clk 0:01:28]}  Qxd3+ {[%clk 0:01:26]} 31. Bxd3 {[%clk 0:01:28]}  Bb7 {[%clk 0:01:27]} 32. f3 {[%clk 0:01:27]}  Kf8 {[%clk 0:01:23]} 33. Ke2 {[%clk 0:01:26]}  Ke8 {[%clk 0:01:23]} 34. Bf2 {[%clk 0:01:21]}  Kd7 {[%clk 0:01:21]} 35. h4 {[%clk 0:01:15]}  Bd8 {[%clk 0:01:13]} 36. g4 {[%clk 0:01:14]}  Bc7 {[%clk 0:01:13]} 37. f4 {[%clk 0:01:13]}  Bd8 {[%clk 0:01:04]} 38. g5 {[%clk 0:01:13]}  hxg5 {[%clk 0:00:51]} 39. hxg5 {[%clk 0:01:11]}  g6 {[%clk 0:00:47]} 40. e4 {[%clk 0:00:59]}  Be7 {[%clk 0:00:42]} 41. Be3 {[%clk 0:00:58]}  Kc7 {[%clk 0:00:37]} 42. Kf3 {[%clk 0:00:58]}  Kb6 {[%clk 0:00:34]} 43. Kg4 {[%clk 0:00:57]}  Bc8 {[%clk 0:00:34]} 44. f5 {[%clk 0:00:56]}  Kc6 {[%clk 0:00:30]} 45. f6 {[%clk 0:00:51]}  Bd8 {[%clk 0:00:29]} 46. Kf4 {[%clk 0:00:51]}  Bc7 {[%clk 0:00:28]} 47. Bf2 {[%clk 0:00:52]}  Bd7 {[%clk 0:00:27]} 48. Bg3 {[%clk 0:00:52]}  Be8 {[%clk 0:00:25]} 49. Ke3 {[%clk 0:00:52]}  Kb6 {[%clk 0:00:25]} 50. Bf4 {[%clk 0:00:53]}  Bc6 {[%clk 0:00:25]} 51. Be2 {[%clk 0:00:52]}  Be8 {[%clk 0:00:21]} 52. Bf3 {[%clk 0:00:51]}  Bd7 {[%clk 0:00:20]} 53. Bg4 {[%clk 0:00:51]}  Be8 {[%clk 0:00:20]} 54. Kd3 {[%clk 0:00:50]}  Bc6 {[%clk 0:00:20]} 55. Bxe6 {[%clk 0:00:49]}  Be8 {[%clk 0:00:16]} 56. Bg4 {[%clk 0:00:48]}  Kc6 {[%clk 0:00:15]} 57. Ke3 {[%clk 0:00:48]}  Bd7 {[%clk 0:00:11]} 58. e6 {[%clk 0:00:46]}  Be8 {[%clk 0:00:07]} 59. exf7 {[%clk 0:00:44]}  Bxf7 {[%clk 0:00:07]} 60. Bxc7 {[%clk 0:00:44]}  Kxc7 {[%clk 0:00:08]} 61. e5 {[%clk 0:00:44]}  Bxc4 {[%clk 0:00:07]} 62. bxc4 {[%clk 0:00:42]}  b3 {[%clk 0:00:08]} 63. f7 {[%clk 0:00:40]}  bxa2 {[%clk 0:00:07]} 64. f8=Q {[%clk 0:00:40]}  a1=Q {[%clk 0:00:07]} 65. Qxc5+ {[%clk 0:00:40]}  Kb8 {[%clk 0:00:06]} 66. Qd6+ {[%clk 0:00:39]}  Ka7 {[%clk 0:00:06]} 67. Qc5+ {[%clk 0:00:39]}  Ka6 {[%clk 0:00:06]} 68. Bc8# {[%clk 0:00:36]} 1-0


[Site "https://www.chess.com"]

[Event "Titled Tuesday Blitz January 17 Late 2023"]
[White "Mione, Dario"]
[Black "Ortega Ruiz, Jose Miguel"]
[WhiteFideId "806625"]
[BlackFideId "2209713"]
[WhiteElo "2228"]
[BlackElo "2351"]
[Result "1/2-1/2"]
[Round "04"]
[TimeControl "180+2"]
[Date "2023.01.17"]
[WhiteClock "0:02:33"]
[BlackClock "0:02:26"]

1. e4 {[%clk 0:03:00]}  c5 {[%clk 0:02:59]} 2. d4 {[%clk 0:03:00]}  cxd4 {[%clk 0:03:00]} 3. c3 {[%clk 0:03:00]}  d3 {[%clk 0:03:00]} 4. Bxd3 {[%clk 0:03:00]}  Nc6 {[%clk 0:03:00]} 5. c4 {[%clk 0:03:00]}  e6 {[%clk 0:02:57]} 6. Ne2 {[%clk 0:02:58]}  Nf6 {[%clk 0:02:57]} 7. b3 {[%clk 0:02:57]}  Bc5 {[%clk 0:02:54]} 8. O-O {[%clk 0:02:55]}  O-O {[%clk 0:02:46]} 9. Nbc3 {[%clk 0:02:54]}  a6 {[%clk 0:02:45]} 10. Bb2 {[%clk 0:02:41]}  Nb4 {[%clk 0:02:41]} 11. Bb1 {[%clk 0:02:38]}  Nc6 {[%clk 0:02:26]} 12. Bd3 {[%clk 0:02:33]}  Nb4 {[%clk 0:02:26]} 13. Bb1 {[%clk 0:02:33]}  Nc6 {[%clk 0:02:26]} 14. Bd3 {[%clk 0:02:33]} 1/2-1/2


[Site "https://www.chess.com"]

[Event "Titled Tuesday Blitz January 17 Late 2023"]
[White "Stanisz, Patryk"]
[Black "Bambino Filho, Antonio Carlos"]
[WhiteFideId "1123106"]
[BlackFideId "2113163"]
[WhiteElo "2161"]
[BlackElo "2144"]
[Result "0-1"]
[Round "04"]
[TimeControl "180+2"]
[Date "2023.01.17"]
[WhiteClock "0:00:07"]
[BlackClock "0:00:11"]

1. e4 {[%clk 0:03:00]}  c5 {[%clk 0:02:57]} 2. Nf3 {[%clk 0:03:00]}  d6 {[%clk 0:02:57]} 3. Bb5+ {[%clk 0:03:00]}  Nc6 {[%clk 0:02:57]} 4. c3 {[%clk 0:02:59]}  Bd7 {[%clk 0:02:55]} 5. d4 {[%clk 0:02:57]}  cxd4 {[%clk 0:02:50]} 6. cxd4 {[%clk 0:02:55]}  g6 {[%clk 0:02:50]} 7. Nc3 {[%clk 0:02:54]}  Bg7 {[%clk 0:02:42]} 8. O-O {[%clk 0:02:53]}  a6 {[%clk 0:02:39]} 9. Bxc6 {[%clk 0:02:51]}  Bxc6 {[%clk 0:02:40]} 10. Be3 {[%clk 0:02:52]}  Nf6 {[%clk 0:02:40]} 11. d5 {[%clk 0:02:42]}  Bd7 {[%clk 0:02:38]} 12. a4 {[%clk 0:02:23]}  O-O {[%clk 0:02:37]} 13. h3 {[%clk 0:02:23]}  b5 {[%clk 0:02:30]} 14. a5 {[%clk 0:02:20]}  b4 {[%clk 0:02:27]} 15. Bb6 {[%clk 0:02:17]}  Qb8 {[%clk 0:02:22]} 16. Na2 {[%clk 0:02:08]}  Nxe4 {[%clk 0:02:07]} 17. Nxb4 {[%clk 0:02:08]}  Bxb2 {[%clk 0:02:01]} 18. Rb1 {[%clk 0:02:08]}  Bg7 {[%clk 0:02:02]} 19. Bd4 {[%clk 0:01:52]}  Bb5 {[%clk 0:01:55]} 20. Nc6 {[%clk 0:01:51]}  Qc7 {[%clk 0:01:50]} 21. Bxg7 {[%clk 0:01:51]}  Kxg7 {[%clk 0:01:50]} 22. Qd4+ {[%clk 0:01:47]}  Nf6 {[%clk 0:01:51]} 23. Rfe1 {[%clk 0:01:46]}  Bxc6 {[%clk 0:01:48]} 24. Rbc1 {[%clk 0:01:43]}  Qxa5 {[%clk 0:01:47]} 25. dxc6 {[%clk 0:01:40]}  Rac8 {[%clk 0:01:47]} 26. Rxe7 {[%clk 0:01:36]}  Qd5 {[%clk 0:01:35]} 27. Qc3 {[%clk 0:01:29]}  Rfe8 {[%clk 0:01:22]} 28. Rxe8 {[%clk 0:01:26]}  Rxe8 {[%clk 0:01:23]} 29. c7 {[%clk 0:01:26]}  Rc8 {[%clk 0:01:14]} 30. h4 {[%clk 0:01:26]}  h6 {[%clk 0:01:12]} 31. g4 {[%clk 0:01:09]}  Rxc7 {[%clk 0:01:06]} 32. Qxc7 {[%clk 0:01:03]}  Qxf3 {[%clk 0:01:06]} 33. Qxd6 {[%clk 0:00:52]}  Qxg4+ {[%clk 0:00:58]} 34. Qg3 {[%clk 0:00:50]}  Qf5 {[%clk 0:00:58]} 35. Ra1 {[%clk 0:00:37]}  Ne4 {[%clk 0:00:50]} 36. Qg2 {[%clk 0:00:34]}  Qf4 {[%clk 0:00:48]} 37. Ra4 {[%clk 0:00:19]}  Qc1+ {[%clk 0:00:43]} 38. Qf1 {[%clk 0:00:16]}  Qf4 {[%clk 0:00:34]} 39. Qg2 {[%clk 0:00:10]}  Qc1+ {[%clk 0:00:24]} 40. Qf1 {[%clk 0:00:10]}  Qc2 {[%clk 0:00:18]} 41. Rxa6 {[%clk 0:00:08]}  Nd2 {[%clk 0:00:13]} 42. Qa1+ {[%clk 0:00:04]}  Kh7 {[%clk 0:00:14]} 43. Ra7 {[%clk 0:00:04]}  Qf5 {[%clk 0:00:11]} 44. Qa2 {[%clk 0:00:02]}  Nf3+ {[%clk 0:00:11]} 45. Kf1 {[%clk 0:00:02]}  Ne5 {[%clk 0:00:10]} 46. Qd5 {[%clk 0:00:01]}  Kg7 {[%clk 0:00:05]} 47. f3 {[%clk 0:00:01]}  Qh3+ {[%clk 0:00:05]} 48. Ke2 {[%clk 0:00:01]}  Qg2+ {[%clk 0:00:05]} 49. Ke3 {[%clk 0:00:01]}  Qg1+ {[%clk 0:00:06]} 50. Ke2 {[%clk 0:00:01]}  Qxa7 {[%clk 0:00:06]} 51. Qxe5+ {[%clk 0:00:02]}  Kh7 {[%clk 0:00:06]} 52. Qf6 {[%clk 0:00:02]}  Qd7 {[%clk 0:00:06]} 53. Kf2 {[%clk 0:00:02]}  Kg8 {[%clk 0:00:06]} 54. h5 {[%clk 0:00:02]}  Qd2+ {[%clk 0:00:06]} 55. Kg3 {[%clk 0:00:02]}  Qe1+ {[%clk 0:00:06]} 56. Kg2 {[%clk 0:00:02]}  Qe6 {[%clk 0:00:04]} 57. Qd8+ {[%clk 0:00:02]}  Kg7 {[%clk 0:00:05]} 58. hxg6 {[%clk 0:00:02]}  Qxg6+ {[%clk 0:00:06]} 59. Kf2 {[%clk 0:00:01]}  Qf6 {[%clk 0:00:06]} 60. Qd4 {[%clk 0:00:02]}  Qxd4+ {[%clk 0:00:06]} 61. Kg3 {[%clk 0:00:03]}  Qf6 {[%clk 0:00:06]} 62. Kf2 {[%clk 0:00:04]}  Kg6 {[%clk 0:00:07]} 63. Kg3 {[%clk 0:00:05]}  Kf5 {[%clk 0:00:07]} 64. Kh3 {[%clk 0:00:06]}  Qg5 {[%clk 0:00:08]} 65. f4 {[%clk 0:00:07]}  Qg4+ {[%clk 0:00:08]} 66. Kh2 {[%clk 0:00:07]}  Kxf4 {[%clk 0:00:09]} 67. Kh1 {[%clk 0:00:08]}  Kf3 {[%clk 0:00:10]} 68. Kh2 {[%clk 0:00:07]}  Qg2# {[%clk 0:00:11]} 0-1


[Site "https://www.chess.com"]

[Event "Titled Tuesday Blitz January 17 Late 2023"]
[White "Batista, Renato Luiz"]
[Black "Almagro Mazariegos, Sebastian"]
[WhiteFideId "2106540"]
[BlackFideId "2221640"]
[WhiteElo "2174"]
[BlackElo "2280"]
[Result "1-0"]
[Round "04"]
[TimeControl "180+2"]
[Date "2023.01.17"]
[WhiteClock "0:01:45"]
[BlackClock "0:00:28"]

1. e4 {[%clk 0:02:56]}  c5 {[%clk 0:02:53]} 2. Nf3 {[%clk 0:02:56]}  d6 {[%clk 0:02:52]} 3. d4 {[%clk 0:02:56]}  cxd4 {[%clk 0:02:53]} 4. Nxd4 {[%clk 0:02:56]}  Nf6 {[%clk 0:02:53]} 5. f3 {[%clk 0:02:57]}  a6 {[%clk 0:02:54]} 6. c4 {[%clk 0:02:57]}  e6 {[%clk 0:02:54]} 7. Nc3 {[%clk 0:02:57]}  Be7 {[%clk 0:02:55]} 8. Be3 {[%clk 0:02:57]}  O-O {[%clk 0:02:55]} 9. Qd2 {[%clk 0:02:57]}  b6 {[%clk 0:02:56]} 10. Be2 {[%clk 0:02:57]}  Bb7 {[%clk 0:02:57]} 11. O-O {[%clk 0:02:57]}  Nbd7 {[%clk 0:02:57]} 12. Rac1 {[%clk 0:02:57]}  Qc7 {[%clk 0:02:57]} 13. Rfd1 {[%clk 0:02:57]}  Rac8 {[%clk 0:02:57]} 14. Bf1 {[%clk 0:02:57]}  Rfe8 {[%clk 0:02:56]} 15. Qf2 {[%clk 0:02:57]}  Qb8 {[%clk 0:02:56]} 16. Nc2 {[%clk 0:02:55]}  Bd8 {[%clk 0:02:55]} 17. g3 {[%clk 0:02:52]}  Bc7 {[%clk 0:02:53]} 18. Na4 {[%clk 0:02:46]}  Bc6 {[%clk 0:02:43]} 19. Nc3 {[%clk 0:02:44]}  Kh8 {[%clk 0:02:35]} 20. b4 {[%clk 0:02:43]}  Rg8 {[%clk 0:02:28]} 21. b5 {[%clk 0:02:41]}  Bb7 {[%clk 0:02:24]} 22. bxa6 {[%clk 0:02:38]}  Bxa6 {[%clk 0:02:24]} 23. Nb5 {[%clk 0:02:38]}  Bxb5 {[%clk 0:02:20]} 24. cxb5 {[%clk 0:02:39]}  d5 {[%clk 0:02:14]} 25. Nb4 {[%clk 0:02:23]}  Rge8 {[%clk 0:01:55]} 26. exd5 {[%clk 0:02:18]}  exd5 {[%clk 0:01:51]} 27. Nc6 {[%clk 0:02:01]}  Qa8 {[%clk 0:01:38]} 28. g4 {[%clk 0:01:57]}  Bd6 {[%clk 0:01:34]} 29. g5 {[%clk 0:01:54]}  Nh5 {[%clk 0:01:29]} 30. f4 {[%clk 0:01:53]}  Rxe3 {[%clk 0:01:11]} 31. Qxe3 {[%clk 0:01:52]}  Bxf4 {[%clk 0:01:10]} 32. Qh3 {[%clk 0:01:47]}  Bxc1 {[%clk 0:00:53]} 33. Rxc1 {[%clk 0:01:46]}  Qa3 {[%clk 0:00:28]} 34. Qxa3 {[%clk 0:01:45]} 1-0


[Site "https://www.chess.com"]

[Event "Titled Tuesday Blitz January 17 Late 2023"]
[White "Mendez Machado, Andre"]
[Black "rikchessmx"]
[WhiteFideId "6603793"]
[WhiteElo "1974"]
[BlackElo "2289"]
[Result "1-0"]
[Round "04"]
[TimeControl "180+2"]
[Date "2023.01.17"]
[WhiteClock "0:00:22"]
[BlackClock "0:01:29"]

1. e4 {[%clk 0:02:58]}  e5 {[%clk 0:02:58]} 2. Nf3 {[%clk 0:02:57]}  Nc6 {[%clk 0:02:58]} 3. Bc4 {[%clk 0:02:58]}  Bc5 {[%clk 0:02:57]} 4. c3 {[%clk 0:02:58]}  Qf6 {[%clk 0:02:57]} 5. d4 {[%clk 0:02:48]}  exd4 {[%clk 0:02:57]} 6. Bg5 {[%clk 0:02:39]}  Qg6 {[%clk 0:02:56]} 7. O-O {[%clk 0:02:33]}  dxc3 {[%clk 0:02:55]} 8. Nxc3 {[%clk 0:02:25]}  d6 {[%clk 0:02:46]} 9. Nd5 {[%clk 0:02:06]}  Bb6 {[%clk 0:02:46]} 10. Be3 {[%clk 0:01:52]}  Kd8 {[%clk 0:02:35]} 11. Bxb6 {[%clk 0:01:44]}  axb6 {[%clk 0:02:36]} 12. e5 {[%clk 0:01:44]}  Bd7 {[%clk 0:02:27]} 13. exd6 {[%clk 0:01:42]}  Qxd6 {[%clk 0:02:26]} 14. Qd2 {[%clk 0:01:29]}  Nf6 {[%clk 0:02:21]} 15. Qg5 {[%clk 0:01:23]}  Ne7 {[%clk 0:02:10]} 16. Qxg7 {[%clk 0:01:12]}  Nfxd5 {[%clk 0:02:05]} 17. Qxh8+ {[%clk 0:01:12]}  Be8 {[%clk 0:02:05]} 18. Rad1 {[%clk 0:01:10]}  c6 {[%clk 0:02:05]} 19. Rfe1 {[%clk 0:00:50]}  Kc7 {[%clk 0:02:00]} 20. Bxd5 {[%clk 0:00:48]}  cxd5 {[%clk 0:01:58]} 21. Rc1+ {[%clk 0:00:46]}  Bc6 {[%clk 0:01:55]} 22. Qxa8 {[%clk 0:00:44]}  Ng6 {[%clk 0:01:54]} 23. Qg8 {[%clk 0:00:39]}  d4 {[%clk 0:01:51]} 24. Qxf7+ {[%clk 0:00:38]}  Kb8 {[%clk 0:01:50]} 25. Qe6 {[%clk 0:00:26]}  Qc7 {[%clk 0:01:37]} 26. Nxd4 {[%clk 0:00:25]}  Nf4 {[%clk 0:01:36]} 27. Nxc6+ {[%clk 0:00:22]}  bxc6 {[%clk 0:01:35]} 28. Qxc6 {[%clk 0:00:22]}  Qg7 {[%clk 0:01:30]} 29. Re8+ {[%clk 0:00:21]}  Ka7 {[%clk 0:01:29]} 30. Ra8# {[%clk 0:00:22]} 1-0


[Site "https://www.chess.com"]

[Event "Titled Tuesday Blitz January 17 Late 2023"]
[White "Nakamura, Hikaru"]
[Black "Zakhartsov, Vladimir"]
[WhiteFideId "2016192"]
[BlackFideId "4145097"]
[WhiteElo "2775"]
[BlackElo "2552"]
[Result "1-0"]
[Round "05"]
[TimeControl "180+2"]
[Date "2023.01.17"]
[WhiteClock "0:01:17"]
[BlackClock "0:00:01"]

1. Nf3 {[%clk 0:03:00]}  d5 {[%clk 0:02:55]} 2. g3 {[%clk 0:02:59]}  g6 {[%clk 0:02:55]} 3. d4 {[%clk 0:02:58]}  Bg7 {[%clk 0:02:53]} 4. Bg2 {[%clk 0:02:59]}  Nf6 {[%clk 0:02:53]} 5. O-O {[%clk 0:02:58]}  O-O {[%clk 0:02:53]} 6. c4 {[%clk 0:02:59]}  c6 {[%clk 0:02:53]} 7. Qb3 {[%clk 0:02:59]}  a5 {[%clk 0:02:41]} 8. cxd5 {[%clk 0:02:58]}  a4 {[%clk 0:02:36]} 9. Qd1 {[%clk 0:02:57]}  cxd5 {[%clk 0:02:26]} 10. Nc3 {[%clk 0:02:56]}  Qa5 {[%clk 0:02:23]} 11. Bd2 {[%clk 0:02:51]}  Qa6 {[%clk 0:02:19]} 12. a3 {[%clk 0:02:50]}  Nc6 {[%clk 0:02:19]} 13. e3 {[%clk 0:02:48]}  Bf5 {[%clk 0:02:18]} 14. Re1 {[%clk 0:02:49]}  Bd3 {[%clk 0:02:18]} 15. Ne5 {[%clk 0:02:45]}  Nxe5 {[%clk 0:02:11]} 16. dxe5 {[%clk 0:02:45]}  Ne4 {[%clk 0:02:11]} 17. Nxd5 {[%clk 0:02:46]}  Bxe5 {[%clk 0:02:00]} 18. Nb4 {[%clk 0:02:37]}  Qb5 {[%clk 0:01:54]} 19. Nxd3 {[%clk 0:02:37]}  Qxd3 {[%clk 0:01:54]} 20. Bb4 {[%clk 0:02:37]}  Qxd1 {[%clk 0:01:45]} 21. Rexd1 {[%clk 0:02:20]}  Nd6 {[%clk 0:01:26]} 22. Rab1 {[%clk 0:02:20]}  Rab8 {[%clk 0:01:18]} 23. b3 {[%clk 0:02:11]}  axb3 {[%clk 0:01:05]} 24. Rxb3 {[%clk 0:02:11]}  b5 {[%clk 0:00:49]} 25. Rd5 {[%clk 0:02:09]}  Bf6 {[%clk 0:00:26]} 26. Bxd6 {[%clk 0:01:53]}  exd6 {[%clk 0:00:27]} 27. Rdxb5 {[%clk 0:01:53]}  Rbc8 {[%clk 0:00:28]} 28. Bd5 {[%clk 0:01:48]}  Rc1+ {[%clk 0:00:16]} 29. Kg2 {[%clk 0:01:48]}  Ra1 {[%clk 0:00:16]} 30. Rb7 {[%clk 0:01:47]}  h5 {[%clk 0:00:12]} 31. h4 {[%clk 0:01:47]}  g5 {[%clk 0:00:10]} 32. hxg5 {[%clk 0:01:17]}  Bxg5 {[%clk 0:00:11]} 33. Rxf7 {[%clk 0:01:17]}  Rxf7 {[%clk 0:00:05]} 34. Rb7 {[%clk 0:01:17]}  Rxa3 {[%clk 0:00:04]} 35. Bxf7+ {[%clk 0:01:17]}  Kf8 {[%clk 0:00:01]} 36. Bxh5 {[%clk 0:01:18]}  Ra2 {[%clk 0:00:01]} 37. Rf7+ {[%clk 0:01:16]}  Kg8 {[%clk 0:00:01]} 38. Rf5 {[%clk 0:01:17]} 1-0


[Site "https://www.chess.com"]

[Event "Titled Tuesday Blitz January 17 Late 2023"]
[White "Chigaev, Maksim"]
[Black "Hansen, Eric"]
[WhiteFideId "4108116"]
[BlackFideId "2606771"]
[WhiteElo "2628"]
[BlackElo "2609"]
[Result "1-0"]
[Round "05"]
[TimeControl "180+2"]
[Date "2023.01.17"]
[WhiteClock "0:00:10"]
[BlackClock "0:00:01"]

1. e4 {[%clk 0:03:00]}  c5 {[%clk 0:02:53]} 2. Nf3 {[%clk 0:03:01]}  e6 {[%clk 0:02:53]} 3. b3 {[%clk 0:03:00]}  Nc6 {[%clk 0:02:53]} 4. Bb2 {[%clk 0:02:59]}  Nge7 {[%clk 0:02:52]} 5. Nc3 {[%clk 0:02:57]}  a6 {[%clk 0:02:40]} 6. d4 {[%clk 0:02:55]}  cxd4 {[%clk 0:02:40]} 7. Nxd4 {[%clk 0:02:56]}  Qc7 {[%clk 0:02:39]} 8. Qd2 {[%clk 0:02:50]}  Nxd4 {[%clk 0:02:27]} 9. Qxd4 {[%clk 0:02:50]}  Nc6 {[%clk 0:02:28]} 10. Qd2 {[%clk 0:02:41]}  Be7 {[%clk 0:02:13]} 11. O-O-O {[%clk 0:02:40]}  O-O {[%clk 0:02:10]} 12. Kb1 {[%clk 0:02:38]}  d6 {[%clk 0:02:06]} 13. g4 {[%clk 0:02:34]}  b5 {[%clk 0:02:04]} 14. g5 {[%clk 0:02:34]}  Bb7 {[%clk 0:02:03]} 15. h4 {[%clk 0:02:24]}  Rad8 {[%clk 0:01:57]} 16. Nd5 {[%clk 0:02:04]}  exd5 {[%clk 0:01:55]} 17. exd5 {[%clk 0:02:05]}  Ne5 {[%clk 0:01:55]} 18. f4 {[%clk 0:02:05]}  Rfe8 {[%clk 0:01:17]} 19. h5 {[%clk 0:01:57]}  Nf3 {[%clk 0:00:57]} 20. Qf2 {[%clk 0:01:30]}  Rc8 {[%clk 0:00:56]} 21. c4 {[%clk 0:01:04]}  bxc4 {[%clk 0:00:49]} 22. Bxc4 {[%clk 0:01:05]}  Nxg5 {[%clk 0:00:35]} 23. fxg5 {[%clk 0:01:04]}  Bxg5 {[%clk 0:00:35]} 24. Rhg1 {[%clk 0:00:52]}  h6 {[%clk 0:00:26]} 25. Bxg7 {[%clk 0:00:29]}  Kxg7 {[%clk 0:00:18]} 26. Rxg5+ {[%clk 0:00:29]}  hxg5 {[%clk 0:00:07]} 27. h6+ {[%clk 0:00:29]}  Kf8 {[%clk 0:00:08]} 28. Qf6 {[%clk 0:00:29]}  Qd8 {[%clk 0:00:08]} 29. Qg7+ {[%clk 0:00:21]}  Ke7 {[%clk 0:00:08]} 30. Rf1 {[%clk 0:00:12]}  Rf8 {[%clk 0:00:08]} 31. h7 {[%clk 0:00:09]}  Rxc4 {[%clk 0:00:01]} 32. h8=Q {[%clk 0:00:10]} 1-0


[Site "https://www.chess.com"]

[Event "Titled Tuesday Blitz January 17 Late 2023"]
[White "Remizov, Yaroslav"]
[Black "Jobava, Baadur"]
[WhiteFideId "34134015"]
[BlackFideId "13601520"]
[WhiteElo "2421"]
[BlackElo "2578"]
[Result "0-1"]
[Round "05"]
[TimeControl "180+2"]
[Date "2023.01.17"]
[WhiteClock "0:00:02"]
[BlackClock "0:00:16"]

1. e4 {[%clk 0:03:00]}  c6 {[%clk 0:02:54]} 2. d4 {[%clk 0:03:00]}  d5 {[%clk 0:02:54]} 3. e5 {[%clk 0:03:00]}  Bf5 {[%clk 0:02:54]} 4. h4 {[%clk 0:03:00]}  f6 {[%clk 0:02:52]} 5. g4 {[%clk 0:02:23]}  Bd7 {[%clk 0:02:51]} 6. f4 {[%clk 0:02:14]}  e6 {[%clk 0:02:44]} 7. Bd3 {[%clk 0:02:10]}  c5 {[%clk 0:02:43]} 8. Nf3 {[%clk 0:02:06]}  Nc6 {[%clk 0:02:41]} 9. c3 {[%clk 0:01:57]}  Qb6 {[%clk 0:02:34]} 10. Na3 {[%clk 0:01:39]}  cxd4 {[%clk 0:02:31]} 11. cxd4 {[%clk 0:01:32]}  fxe5 {[%clk 0:02:20]} 12. fxe5 {[%clk 0:01:26]}  Bb4+ {[%clk 0:02:15]} 13. Kf1 {[%clk 0:01:24]}  Nh6 {[%clk 0:01:59]} 14. Bxh6 {[%clk 0:01:23]}  gxh6 {[%clk 0:01:59]} 15. Nc2 {[%clk 0:01:21]}  O-O-O {[%clk 0:01:57]} 16. Kg2 {[%clk 0:01:01]}  Rdg8 {[%clk 0:01:49]} 17. Kh3 {[%clk 0:01:01]}  Be7 {[%clk 0:01:47]} 18. Qd2 {[%clk 0:00:52]}  h5 {[%clk 0:01:29]} 19. gxh5 {[%clk 0:00:43]}  Rf8 {[%clk 0:01:22]} 20. Rhf1 {[%clk 0:00:26]}  h6 {[%clk 0:01:22]} 21. b3 {[%clk 0:00:23]}  Kb8 {[%clk 0:01:19]} 22. Bg6 {[%clk 0:00:22]}  Qd8 {[%clk 0:01:16]} 23. Qe3 {[%clk 0:00:17]}  Rfg8 {[%clk 0:00:58]} 24. Rg1 {[%clk 0:00:17]}  Bf8 {[%clk 0:00:57]} 25. Rg3 {[%clk 0:00:17]}  Ne7 {[%clk 0:00:57]} 26. Rag1 {[%clk 0:00:16]}  Qc7 {[%clk 0:00:55]} 27. Nce1 {[%clk 0:00:16]}  Qa5 {[%clk 0:00:51]} 28. a4 {[%clk 0:00:14]}  Qb6 {[%clk 0:00:42]} 29. Bc2 {[%clk 0:00:12]}  Rxg3+ {[%clk 0:00:42]} 30. Rxg3 {[%clk 0:00:13]}  a5 {[%clk 0:00:36]} 31. Nd3 {[%clk 0:00:12]}  Nf5 {[%clk 0:00:35]} 32. Nc5 {[%clk 0:00:11]}  Bxc5 {[%clk 0:00:33]} 33. Bxf5 {[%clk 0:00:06]}  exf5 {[%clk 0:00:31]} 34. dxc5 {[%clk 0:00:06]}  f4+ {[%clk 0:00:30]} 35. Kg2 {[%clk 0:00:06]}  Qb4 {[%clk 0:00:30]} 36. Qd4 {[%clk 0:00:03]}  Qxd4 {[%clk 0:00:27]} 37. Nxd4 {[%clk 0:00:03]}  fxg3 {[%clk 0:00:28]} 38. e6 {[%clk 0:00:03]}  Bc8 {[%clk 0:00:23]} 39. c6 {[%clk 0:00:02]}  Re8 {[%clk 0:00:20]} 40. Kxg3 {[%clk 0:00:03]}  Bxe6 {[%clk 0:00:19]} 41. cxb7 {[%clk 0:00:03]}  Kxb7 {[%clk 0:00:19]} 42. Nb5 {[%clk 0:00:03]}  Kc6 {[%clk 0:00:16]} 43. Kf4 {[%clk 0:00:03]}  Bd7 {[%clk 0:00:16]} 44. Nd4+ {[%clk 0:00:02]}  Kd6 {[%clk 0:00:16]} 0-1


[Site "https://www.chess.com"]